Cogmind - Beta 15 @@@ ROGUE MODE // 2025.07.10 @ 12:57:25 Player: knux400 Result: Destroyed by Y-45 Defender with Heavy Assault Rifle Performance ------------- Evolutions (1) 500 Regions Visited (4) 800 Robots Destroyed (24) 120 Value Destroyed (648) 648 Prototype IDs (0) 0 Alien Tech Used (0) 0 Bonus (0) 0 TOTAL SCORE: 2068 Bonus ------- None Cogmind --------- Core Integrity 0/400 Matter 300/300 Energy 100/100 System Corruption 0% Temperature Cool (9) Movement Core (100) Ox1 Location -9/Storage Parts ------- > --- POWER (1) -------- (None) > --- PROPULSION (3) --- (None) > --- UTILITY (3) ------ Small Storage Unit > --- WEAPON (2) ------- (None) > --- INVENTORY (8) ---- Light Ion Engine Improved Heat Sink Medium Matter Pod (100) Tractor Beam Peak State ------------ > --- POWER ------------ Ion Engine > --- PROPULSION ------- Wheel Wheel > --- UTILITY ---------- Improved Heat Sink Sensor Array > --- WEAPON ----------- Particle Gun Light Assault Rifle > --- INVENTORY -------- Aluminum Leg Aluminum Leg EM Pulse Gun Small Laser Light Assault Rifle [Rating: 10] Favorites ----------- Power Ion Engine Engine Ion Engine Propulsion Wheel Treads Light Treads Wheel Wheel Flight Unit Flight Unit Utility Small Storage Unit Device Sensor Array Storage Small Storage Unit Protection Light Armor Plating Weapon Light Assault Rifle Energy Gun Particle Gun Ballistic Gun Light Assault Rifle Launcher Rocket Launcher Special Weapon Plasma Cutter Build | -11 -10 -10 -9 -9 ------- Run | Yrd Mat Min Mat Sto Slots Evolved 2 | . . . 2 . Power . | . . . . . Propulsion 1 | . . . 1 . Utility 1 | . . . 1 . Weapon . | . . . . . Parts Attached 27 | 6 8 10 . 3 Power 5 | 1 1 3 . . Engine 5 | 1 1 3 . . Core . | . . . . . Reactor . | . . . . . Propulsion 6 | 2 . 3 . 1 Treads 1 | . . . . 1 Leg . | . . . . . Wheel 3 | 2 . 1 . . Hover . | . . . . . Flight 2 | . . 2 . . Utility 8 | 1 4 3 . . Device 5 | 1 3 1 . . Storage 2 | . . 2 . . Processor . | . . . . . Hackware . | . . . . . Protection 1 | . 1 . . . Artifact . | . . . . . Weapon 8 | 2 3 1 . 2 Energy Gun 3 | 1 1 . . 1 Energy Cannon . | . . . . . Ballistic Gun 3 | 1 2 . . . Ballistic Cannon . | . . . . . Launcher 1 | . . 1 . . Special Weapon 1 | . . . . 1 Impact Weapon . | . . . . . Slashing Weapon . | . . . . . Piercing Weapon . | . . . . . Special Melee Weapon . | . . . . . Unidentified Prototypes . | . . . . . Parts Lost 13 | . 1 4 1 7 Power 3 | . 1 1 . 1 Propulsion 4 | . . 1 1 2 Utility 2 | . . 1 . 1 Weapon 4 | . . 1 . 3 Highest Loss Streak 7 | . 1 2 1 7 To Critical Strikes . | . . . . . Average Backups 5 | 1 4 5 6 5 Power . | . . . 2 1 Propulsion 1 | 1 2 1 1 . Utility 1 | . . 2 3 3 Weapon 1 | . 2 . . . Tool/Special . | . . . . . Unused Backups 7 | . 4 2 . 1 Power . | . . . . . Propulsion 4 | . 2 2 . . Utility 1 | . . . . 1 Weapon 2 | . 2 . . . Tool/Special . | . . . . . Average Slot Usage (%) 82 | . 95 90 74 41 Engine 11 | . 11 12 11 6 Wheel 19 | . 28 16 19 6 Flight 3 | . . 10 . . Device 11 | . 21 11 . . Storage 5 | . . 7 11 11 Protection 4 | . 4 3 11 3 Energy Gun 1 | . 3 . . . Ballistic Gun 18 | . 24 20 11 6 Launcher 4 | . . 7 11 5 Peak Build Rating 10 | 6 10 9 8 8 Average Rating 6 | 3 7 6 7 4 On Entrance 5 | . 6 7 8 7 Naked Turns . | . . . . . Heaviest Build 18 | 7 11 18 18 18 Greatest Support 26 | 20 20 26 26 20 Greatest Overweight (x) 2 | . . 2 1 1 Average Overweight (x) . | . . . . . Largest Inventory Capacity 8 | 5 5 8 8 8 Average Capacity 6 | 5 5 6 8 8 Most Carried 8 | 4 5 8 6 7 Average Carried 5 | 2 4 5 6 5 Final Capacity 8 | 5 5 8 8 8 Final Carried 6 | 3 5 6 6 4 Class Distribution -------------------- 50% | Mutant 49% | Scavenger-Mutant Dominant Class ---------------- Mutant | -10/Materials Scavenger-Mutant | -10/Mines Scavenger-Mutant | -9/Materials Scavenger-Mutant | -9/Storage Resources | -11 -10 -10 -9 -9 ----------- Run | Yrd Mat Min Mat Sto Matter Collected 867 | 263 136 342 84 42 Remotely 221 | . 34 187 . . Salvage Created 788 | 47 288 296 157 . Parts 54 | 1 23 20 10 . Haulers Intercepted . | . . . . . Recyclers Shooed 1 | . . . . 1 Parts Field Recycled . | . . . . . Retrieved Matter . | . . . . . Parts Self-Destructed . | . . . . . Prevented . | . . . . . Kills | -11 -10 -10 -9 -9 ------- Run | Yrd Mat Min Mat Sto Combat Hostiles Destroyed 23 | 1 9 9 4 . Guns 16 | 1 9 6 . . AOE 7 | . . 3 4 . Classes Destroyed 3 | 1 1 1 . . Recycler 1 | . . 1 . . Swarmer 8 | . 3 5 . . Grunt 15 | 1 6 4 4 . Best Kill Streak 4 | 1 4 3 2 . Combat Bots Only 4 | 1 4 3 2 . Max Kills in Single Turn 2 | 1 2 2 2 . Gunslinging 1 | . 1 . . . Exploded 2 | . . 2 2 . Melee . | . . . . . Uniques/NPCs Destroyed . | . . . . . Combat | -11 -10 -10 -9 -9 -------- Run | Yrd Mat Min Mat Sto Hostile Shots Fired 167 | 4 41 51 5 66 Missed 55 | 1 12 18 1 23 Hits 112 | 3 29 33 4 43 Melee 7 | . . . . 7 Projectile 105 | 3 29 33 4 36 Critical Strikes 5 | . 2 . . 3 Damage Taken 1451 | 33 331 323 54 710 Core 541 | . 85 53 23 380 Absorbed by Shields . | . . . . . Core Remaining (%) 72 | 100 . 44 . . Volleys Fired 82 | 3 34 30 5 10 Largest 2 | 2 2 2 2 2 Hottest 85 | 60 85 40 53 65 Shots Fired 144 | 6 68 52 7 11 Gun 134 | 6 68 47 4 9 Cannon . | . . . . . Launcher 9 | . . 5 3 1 Special 1 | . . . . 1 Kinetic 122 | 3 61 47 4 7 Thermal 6 | . 3 . . 3 Explosive 9 | . . 5 3 1 Electromagnetic 7 | 3 4 . . . Robot Hit Streak 9 | 4 9 8 4 4 Robot Miss Streak 5 | 1 5 4 1 4 Penetration Max . | . . . . . Secondary Targets 2 | . 2 . . . Max Gunslinging Chain 1 | . 1 . . . Shots Hit Robots 84 | 4 41 28 5 6 Core Hits 50 | 1 21 19 7 2 Critical Kills . | . . . . . Critical Parts Destroyed . | . . . . . Critical Strikes . | . . . . . Melee Attacks . | . . . . . Impact . | . . . . . Slashing . | . . . . . Piercing . | . . . . . Sneak Attacks . | . . . . . Combat Hostiles . | . . . . . Follow-up Attacks . | . . . . . Damage Inflicted 1199 | 82 341 507 207 62 Guns 680 | 42 341 209 28 60 Cannons . | . . . . . Explosions 517 | 40 . 298 179 . Melee . | . . . . . Ramming 2 | . . . . 2 Kinetic 586 | 14 304 209 28 31 Thermal 84 | 40 15 . . 29 Explosive 477 | . . 298 179 . Electromagnetic 50 | 28 22 . . . Impact . | . . . . . Slashing . | . . . . . Piercing . | . . . . . Highest Corruption . | . . . . . Average Corruption . | . . . . . Corruption Purged . | . . . . . Corruption Blocked . | . . . . . Overload Shots . | . . . . . Overflow Damage . | . . . . . Projectiles . | . . . . . Explosions . | . . . . . Melee . | . . . . . Knockbacks . | . . . . . Impact . | . . . . . Kinetic . | . . . . . Secondary . | . . . . . Self-Inflicted Damage 12 | . . . 12 . Shots 1 | . . . 1 . Rammed 4 | . . . . 4 Targets Rammed 4 | . . . . 4 Kicked . | . . . . . Crushed . | . . . . . Highest Temperature 52 | 52 40 30 12 14 Average Temperature 15 | 31 18 10 8 8 Received Heat Transfer 528 | 18 201 84 24 201 Siege Activations . | . . . . . Martial Activations . | . . . . . Shielding Activations . | . . . . . Robots Disrupted . | . . . . . Combat Hostiles . | . . . . . Robots Corrupted . | . . . . . Combat Hostiles . | . . . . . Parts Fried . | . . . . . Impact Corruptions . | . . . . . Robots Melted . | . . . . . Combat Hostiles . | . . . . . Parts Melted . | . . . . . Heat Transferred 161 | 50 37 . . 74 Parts Sabotaged . | . . . . . Parts Stolen . | . . . . . Parts Stripped . | . . . . . Power Chain Reactions 1 | 1 . . . . Alert | -11 -10 -10 -9 -9 ------- Run | Yrd Mat Min Mat Sto Maximum Alert Level . | . . . . . Low Security (%) 100 | 100 100 100 100 100 Level 1 . | . . . . . Level 2 . | . . . . . Level 3 . | . . . . . Level 4 . | . . . . . Level 5 . | . . . . . High Security . | . . . . . Max Security . | . . . . . Peak Influence 132 | 20 71 132 111 42 Initial 43 | . 6 15 43 42 Average 55 | 2 46 90 62 15 Influence Increases 691 | 20 225 302 118 26 Destroy 0b10 Robot/C 460 | 20 180 180 80 . Destroy 0b10 Robot/NC 5 | . . 5 . . Destroy Leader 70 | . 30 30 10 . Destroy Structure 81 | . . 42 28 11 Partial Spotted 15 | . . 15 . . Lose Combat Pursuer 60 | . 15 30 . 15 Influence Decreases 691 | 10 194 231 129 127 Entered New Map 158 | . 4 26 69 59 Time Decay 450 | 10 180 170 50 40 Lost Part 83 | . 10 35 10 28 Squads Dispatched 1 | . 1 . . . Investigation . | . . . . . Extermination . | . . . . . Reinforcement 1 | . 1 . . . Assault . | . . . . . Garrison . | . . . . . Intercept . | . . . . . Searches Triggered . | . . . . . Construction Impeded . | . . . . . Haulers Reinforced . | . . . . . Active Scanning Responses . | . . . . . Cargo Convoy Interrupts . | . . . . . Stealth | -11 -10 -10 -9 -9 --------- Run | Yrd Mat Min Mat Sto Distress Signals 1 | . 1 . . . Communications Jammed . | . . . . . Distress Signals . | . . . . . Times Spotted 36 | 1 14 11 5 5 Peak Tracking Total 3 | 1 3 3 3 3 Tactical Retreats 3 | . 1 1 . 1 Traps | -11 -10 -10 -9 -9 ------- Run | Yrd Mat Min Mat Sto Traps Triggered 2 | . . . . 2 Indirectly . | . . . . . Trap Hack Attempts . | . . . . . Triggered . | . . . . . Disarmed . | . . . . . Reprogrammed . | . . . . . Reused . | . . . . . Traps Extracted . | . . . . . Installed . | . . . . . Triggered . | . . . . . Machines | -11 -10 -10 -9 -9 ---------- Run | Yrd Mat Min Mat Sto Machines Disabled . | . . . . . Max in Single Turn . | . . . . . Machines Repaired . | . . . . . Machines Dismantled . | . . . . . Machines Sabotaged . | . . . . . Overloaded Fab Kills . | . . . . . Hacking | -11 -10 -10 -9 -9 --------- Run | Yrd Mat Min Mat Sto Machines Accessed 2 | . 1 . . 1 Terminals 1 | . 1 . . . Fabricators . | . . . . . Repair Stations . | . . . . . Recycling Units 1 | . . . . 1 Scanalyzers . | . . . . . Garrison Access . | . . . . . Total Hacks 4 | . 1 . . 3 Successful 2 | . . . . 2 Failed 2 | . 1 . . 1 Catastrophic . | . . . . . Database Lockouts . | . . . . . Manual . | . . . . . Terminals 1 | . 1 . . . Fabricators . | . . . . . Repair Stations . | . . . . . Recycling Units 3 | . . . . 3 Scanalyzers . | . . . . . Garrison Access . | . . . . . Terminal Hacks . | . . . . . Fabricator Hacks . | . . . . . Repair Station Hacks . | . . . . . Recycling Unit Hacks 2 | . . . . 2 Recycle Component 1 | . . . . 1 Retrieve Components 1 | . . . . 1 Scanalyzer . | . . . . . Garrison Access Hacks . | . . . . . Unauthorized Hacks . | . . . . . Terminals . | . . . . . Fabricators . | . . . . . Repair Stations . | . . . . . Recycling Units . | . . . . . Scanalyzers . | . . . . . Garrison Access . | . . . . . Data Cores Recovered . | . . . . . Used . | . . . . . Hacking Detections 1 | . . . . 1 Full Trace Events 1 | . . . . 1 Feedback Events . | . . . . . Feedback Blocked . | . . . . . Robot Schematics Acquired . | . . . . . Robots Built . | . . . . . Authchips . | . . . . . Time . | . . . . . Total Robot Build Rating . | . . . . . Part Schematics Acquired . | . . . . . Parts Built . | . . . . . Authchips . | . . . . . Time . | . . . . . Total Part Build Rating . | . . . . . Parts Repaired . | . . . . . Time . | . . . . . Parts Recycled 1 | . . . . 1 Recycled Matter . | . . . . . Retrieved Matter . | . . . . . Retrieved Components 2 | . . . . 2 Parts Scanalyzed . | . . . . . Part Schematics Acquired . | . . . . . Parts Damaged . | . . . . . Bothacking | -11 -10 -10 -9 -9 ------------ Run | Yrd Mat Min Mat Sto Used RIF Installer . | . . . . . Robots Hacked . | . . . . . Non-combat . | . . . . . Combat . | . . . . . Robot Hacks Applied . | . . . . . Relay Couplers Released . | . . . . . Fabnet Peak Effective % . | . . . . . Robots Rewired . | . . . . . Allies Hacked . | . . . . . Hacks Repelled . | . . . . . Allies | -11 -10 -10 -9 -9 -------- Run | Yrd Mat Min Mat Sto Total Allies . | . . . . . Largest Group . | . . . . . Highest-Rated Group . | . . . . . Highest-Rated Ally . | . . . . . Total Orders . | . . . . . Ally Attacks . | . . . . . Total Damage . | . . . . . Kills . | . . . . . Allies Corrupted . | . . . . . Allies Melted . | . . . . . Intel | -11 -10 -10 -9 -9 ------- Run | Yrd Mat Min Mat Sto Active Infowar (turns) 396 | . 242 154 . . Sensors 396 | . 242 154 . . Robot Analysis Total . | . . . . . Derelict Logs Recovered . | . . . . . Drone Launches . | . . . . . Drone Recoveries . | . . . . . Exploration | -11 -10 -10 -9 -9 ------------- Run | Yrd Mat Min Mat Sto Turns Passed 1063 | 80 360 359 111 153 Spaces Moved 964 | 81 298 377 106 102 Core 57 | 18 . . . 39 Treads 7 | . . . . 7 Legs . | . . . . . Wheels 711 | 63 298 188 106 56 Hover . | . . . . . Flight 189 | . . 189 . . Fastest Speed 37 | 50 80 37 90 100 Average Speed 78 | 73 80 64 94 110 Slowest Speed 205 | 80 80 205 115 160 Overloaded Moves . | . . . . . Propulsion Burnouts . | . . . . . Robots Hopped 1 | . . 1 . . Potential Cave-ins . | . . . . . Cave-ins Triggered . | . . . . . Exploration Rate (%) 28 | 8 42 67 13 10 Regions Visited 4 Branch Regions 2 Pre-discovered Areas . | . . . . . Known Exits Taken . | . . . . . Unknown Exits Taken 4 | 1 1 1 1 . Scrap Searched 1 | . . 1 . . Spaces Dug 12 | . . 12 . . Terrain Destroyed 104 | . . 59 33 12 Melee . | . . . . . Projectile . | . . . . . AOE 104 | . . 59 33 12 Terrain Rammed . | . . . . . Walls Destroyed . | . . . . . Machines Disabled . | . . . . . Actions | -11 -10 -10 -9 -9 --------- Run | Yrd Mat Min Mat Sto Total 1138 | 93 363 445 110 127 Wait 19 | . 10 7 . 2 Move 958 | 80 297 374 105 102 Hop 1 | . . 1 . . Pick Up 15 | 4 7 2 . 2 Fast Attach 17 | 5 3 5 . 4 Attach 8 | 1 . 4 . 3 Detach 5 | . . 5 . . Swap 17 | . 5 12 . . Drop 12 | . 7 5 . . Fire 82 | 3 34 30 5 10 Melee . | . . . . . Ram 1 | . . . . 1 Kick . | . . . . . Crush 3 | . . . . 3 Escape Stasis . | . . . . . Rewire . | . . . . . Trap . | . . . . . Miscellaneous . | . . . . . Route ------- -11/Scrapyard -10/Materials -10/Mines -9/Materials (discovered 2 exits: [*Min] / *Sto) -9/Storage History --------- Turn | Location | Event 2 | -11/Scrapyard | Met Revision 17 63 | -11/Scrapyard | Discovered new exit (range 8) 81 | -11/Scrapyard | Entered Materials 308 | -10/Materials | Build established: Mutant 429 | -10/Materials | Discovered new exit (range 10) 441 | -10/Materials | Entered Mines 557 | -10/Mines | Received a Rocket Launcher from a helpful Derelict 598 | -10/Mines | Core integrity fell below 50% 610 | -10/Mines | Discovered new exit (range 13) 800 | -10/Mines | Build established: Scavenger-Mutant 800 | -10/Mines | Entered Materials 800 | -9/Materials | Evolved 2 slots: Propulsion x1, Utility x1 851 | -9/Materials | Discovered new exit (range 15) 875 | -9/Materials | Discovered new exit (range 9) 911 | -9/Materials | Entered Storage 1014 | -9/Storage | Core integrity fell below 50% 1052 | -9/Storage | Core integrity fell below 20% 1056 | -9/Storage | Lost 7 parts (1p2n1u3w) 1064 | -9/Storage | Destroyed by Y-45 Defender with Heavy Assault Rifle Last Messages --------------- Rocket Launcher destroyed. Com. Wheel destroyed. Ion Engine destroyed. Lgt. Assault Rifle destroyed. Plasma Cutter severed. Particle Gun destroyed. Slammed into L-31 Rogue. Slammed into Y-45 Defender. Slammed into M-13 Machinist. Critical hit (Burn: +37). U-05 Engineer builds a Wall. Lgt. Treads destroyed. U-05 Engineer lays Concrete. U-05 Engineer builds a Wall. Acquired 42 matter. U-05 Engineer lays Concrete. U-05 Engineer builds a Wall. Slammed into R-06 Scavenger. U-05 Engineer lays Concrete. U-05 Engineer builds a Wall. Map ----- +----------------------------------------------------+ | ?????????????????????????????? | | ???????????????#####??#####??? | | ???????????????#"""#??# #??? | | ????????????####"Y"#### #??? | | ????????????# # #??? | | ????????????# """ """ # #??? | | ????????????# """ """ # #??? | | ????????????# """ """ + #??? | | ????????????# """ """ # #??? | | ????????????# """ """ # #??? | | ????????????# # ^#??? | | ????????????# | # ###? | | ????????????########### # #? | | ????????????# """"" # ##? | | ????????????# """"" #u # #? | | ????????????# """"" #% ###? | | ????????????# #% ##?? | | ????????????# /Y ##?? | | ????????????# # #??? | | ????????????# #g #??? | | ????????????# # #??? | | ????????????###### #### l#??? | | ?????????????????###??# #??? | | ??????????????????????# #??? | | ??????????????????????# #??? | | ??????????????????????# @#??? | | ??????????????????????# #??? | | ??????????????????????#r #??? | | ??????????????????????# #??? | | ?????????????????????? #??? | | ????????????????????? #??? | | ???????????????????? k #??? | | ???????????????????#####+##??? | | ???????????????????????# ????? | | ???????????????????????T ????? | | ???????????????????????#"????? | | ?????????????????????????????? | | ?????????????????????????????? | | ?????????????????????????????? | | ?????????????????????????????? | | ?????????????????????????????? | | ?????????????????????????????? | | ?????????????????????????????? | | ?????????????????????????????? | | ?????????????????????????????? | | ?????????????????????????????? | | ?????????????????????????????? | | ?????????????????????????????? | | ?????????????????????????????? | | ?????????????????????????????? | +----------------------------------------------------+ Best States ------------- Heat Dissipation 39 Energy Generation 10 Energy Capacity 250 Matter Stores 300 Matter Capacity 300 Sight Range 16 Robot Scan Range 14 Terrain Scan Density 10 Armor Coverage 150 Evasion (%) 62 Recoil Reduction 1 Item Schematics ----------------- None Robot Schematics ------------------ None Fabricated ------------ Nothing Repaired ---------- Nothing Alien Tech Used ----------------- None Achievements -------------- Use The Force Challenges ------------ None Game ------ Seed PrecisionGreatExtrapolator Manual? 0 Play Time 00:31:34 Cumulative 3.6 hours Start 2025.07.10 @ 12:24:27 End 2025.07.10 @ 12:57:25 Sessions 2 Manual Loads 0 Difficulty Rogue Special Mode None Game No. 2 Rogue 2 Adventurer 0 Explorer 0 Win Type - Total 0 Types 0/0/0/0/0/0/0/0/0/0 Lore% 0 Gallery% 6 Achievement% 8 Wizard Run 0 Options --------- Layout 0 ASCII 0 Keyboard 0 Movement Numpad Keybinds 0 Fullscreen 0 Font 16/Terminus Map View 44x27 Zoom Use 83% Tactical HUD 0 Map Filters NONE Filters NONE Steam 1 RUN: 86d07b30-b228-4e65-85df-aae8548035e4